[Event "121st Swiss Championship 2022"]
[Site "Samnaun-Compatsch"]
[Date "2022.07.08"]
[Round "6.11"]
[White "Angst, Oliver"]
[Black "Buehler, Michael"]
[Result "1-0"]
[ECO "D02"]
[WhiteElo "2203"]
[BlackElo "2064"]
[Annotator "RC"]
[PlyCount "81"]
[EventDate "2022.06.28"]
[EventType "swiss"]
[EventCountry "SUI"]
[SourceTitle "playchess.com"]
[Source "ChessBase"]
[SourceQuality "1"]
[TimeControl "40/5400+30:1800+30"]

1. d4 {[%emt 0:00:04]} Nf6 {[%emt 0:00:33]} 2. Bf4 {[%emt 0:00:56]} d5 {[%emt 0:00:52]} 3. e3 {[%emt 0:00:48]} e6 {[%emt 0:00:32]} 4. Nd2 {[%emt 0:00:11]} Bd6 {[%emt 0:00:28]} 5. Ngf3 {[%emt 0:00:06]} c5 {[%emt 0:02:05]} 6. dxc5 {[%emt 0:01:18]} Bxc5 {[%emt 0:01:31]} 7. Bd3 {[%emt 0:00:08]} Nc6 {[%emt 0:04:14]} 8. c4 {[%emt 0:00:49]} O-O {[%emt 0:07:02]} 9. O-O {[%emt 0:03:29]} Re8 {[%emt 0:00:38]} 10. cxd5 {[%emt 0:04:01]} exd5 {[%emt 0:01:51]} 11. Rc1 {[%emt 0:05:30]} Bb6 {[%emt 0:00:33]} 12. Bg5 {[%emt 0:04:43]} h6 {[%emt 0:05:13]} 13. Bh4 {[%emt 0:01:47]} g5 {[%emt 0:07:47]} 14. Bg3 {[%emt 0:06:35]} Ne4 {[%emt 0:00:29]} 15. Bb1 {[%emt 0:33:27]} Bf5 {[%emt 0:16:47]} 16. Nb3 {[%emt 0:02:22]} Rc8 {[%emt 0:15:00]} 17. Nfd4 {[%emt 0:08:39]} Bg6 {[%emt 0:02:24]} 18. Bxe4 {[%emt 0:04:12]} Bxe4 {[%emt 0:03:13]} 19. Nb5 {[%emt 0:00:54]} Re6 {[%emt 0:03:00]} 20. Nc3 {[%emt 0:00:26]} Nb4 {[%emt 0:13:41]} 21. Nxe4 {[%emt 0:03:32]} dxe4 {[%emt 0:00:40]} 22. Rxc8 {[%emt 0:00:20]} Qxc8 {[%emt 0:00:08]} 23. Nd4 {[%emt 0:00:14]} Re7 {[%emt 0:03:24]} 24. Bd6 {[%emt 0:00:53]} Bc5 {[%emt 0:04:15]} 25. Bxe7 {[%emt 0:01:23]} Bxe7 {[%emt 0:00:01]} 26. Qc1 {[%emt 0:02:34]} Qd7 {[%emt 0:00:34]} 27. Qc4 {[%emt 0:00:16]} Nd3 {[%emt 0:00:51]} 28. Qb5 {[%emt 0:00:36]} Qxb5 {[%emt 0:02:51]} 29. Nxb5 {[%emt 0:00:05]} Bc5 {[%emt 0:00:24]} 30. Nd4 {[%emt 0:01:43]} Kg7 {[%emt 0:01:39]} 31. Rd1 {[%emt 0:00:55]} Kg6 {[%emt 0:01:37]} 32. Rd2 {[%emt 0:01:37]} f5 {[%emt 0:00:59]} 33. Kf1 {[%emt 0:03:06]} f4 {[%emt 0:00:33]} 34. Rc2 {[%emt 0:01:59]} Bb6 {[%emt 0:00:30]} 35. a3 {[%emt 0:01:26]} g4 {[%emt 0:00:20]} 36. b4 {[%emt 0:01:24]} h5 {[%emt 0:00:38]} 37. Rc8 {[%emt 0:00:13]} h4 {[%emt 0:00:21]} 38. Rg8+ {[%emt 0:00:26]} Kh5 {[%emt 0:00:30]} 39. Rh8+ {[%emt 0:02:38]} Kg5 {[%emt 0:00:51]} 40. Ne6+ {[%emt 0:00:33]} Kf5 {[%emt 0:00:06]} 41. Nxf4 {[%emt 0:30:07]} 1-0

[Event "121st Swiss Championship 2022"]
[Site "Samnaun-Compatsch"]
[Date "2022.07.08"]
[Round "7.1"]
[White "Loeffler, Markus"]
[Black "Baenziger, Fabian"]
[Result "1/2-1/2"]
[ECO "A07"]
[WhiteElo "2278"]
[BlackElo "2451"]
[Annotator "RC"]
[PlyCount "67"]
[EventDate "2022.06.28"]
[EventType "swiss"]
[EventCountry "SUI"]
[SourceTitle "playchess.com"]
[Source "ChessBase"]
[SourceQuality "1"]
[TimeControl "40/5400+30:1800+30"]

1. Nf3 {[%emt 0:00:14]} d5 {[%emt 0:06:51]} 2. g3 {[%emt 0:00:17]} Bg4 {[%emt 0:00:06]} 3. Bg2 {[%emt 0:00:18]} Nd7 {[%emt 0:00:44]} 4. h3 {[%emt 0:00:49]} Bh5 {[%emt 0:00:06]} 5. d4 {[%emt 0:00:18]} e6 {[%emt 0:00:26]} 6. O-O {[%emt 0:02:34]} c6 {[%emt 0:01:29]} 7. c4 {[%emt 0:00:50]} Ngf6 {[%emt 0:00:26]} 8. cxd5 {[%emt 0:00:21]} exd5 {[%emt 0:00:04]} 9. Ne5 {[%emt 0:00:21]} Ne4 {[%emt 0:00:11]} 10. g4 {[%emt 0:17:24]} Nxe5 {[%emt 0:09:52]} 11. dxe5 {[%emt 0:00:17]} Bg6 {[%emt 0:00:04]} 12. Nd2 {[%emt 0:16:22]} h5 {[%emt 0:08:54]} 13. Nxe4 {[%emt 0:00:19]} dxe4 {[%emt 0:06:47]} 14. Qxd8+ {[%emt 0:02:36]} Rxd8 {[%emt 0:01:15]} 15. Be3 {[%emt 0:00:01]} hxg4 {[%emt 0:05:33]} 16. hxg4 {[%emt 0:00:24]} Rd5 {[%emt 0:00:16]} 17. Bxa7 {[%emt 0:02:19]} Rxe5 {[%emt 0:03:17]} 18. f4 {[%emt 0:09:44]} exf3 {[%emt 0:00:16]} 19. exf3 {[%emt 0:00:05]} f5 {[%emt 0:11:14]} 20. Rad1 {[%emt 0:04:30]} fxg4 {[%emt 0:07:17]} 21. fxg4 {[%emt 0:00:22]} Re6 {[%emt 0:09:29]} 22. Rfe1 {[%emt 0:06:09]} Bf7 {[%emt 0:03:37]} 23. Be4 {[%emt 0:05:59]} Be7 {[%emt 0:00:48]} 24. a3 {[%emt 0:08:50]} Rh4 {[%emt 0:03:33]} 25. Bf3 {[%emt 0:02:46]} Rxe1+ {[%emt 0:05:49]} 26. Rxe1 {[%emt 0:00:02]} Kd7 {[%emt 0:00:05]} 27. Rd1+ {[%emt 0:04:23]} Ke8 {[%emt 0:01:35]} 28. Kg2 {[%emt 0:04:26]} Be6 {[%emt 0:03:20]} 29. Bf2 {[%emt 0:00:08]} Rh6 {[%emt 0:00:23]} 30. b4 {[%emt 0:01:37]} Bb3 {[%emt 0:04:07]} 31. Rd3 {[%emt 0:01:22]} Bc2 {[%emt 0:00:26]} 32. Rd2 {[%emt 0:01:10]} Bb3 {[%emt 0:00:04]} 33. Rd3 {[%emt 0:02:58]} Bc2 {[%emt 0:00:03]} 34. Rd2 {[%emt 0:00:32]} 1/2-1/2

[Event "121st Swiss Championship 2022"]
[Site "Samnaun-Compatsch"]
[Date "2022.07.08"]
[Round "7.2"]
[White "Gaehwiler, Gabriel"]
[Black "Pavlovic, Milos"]
[Result "1/2-1/2"]
[ECO "E11"]
[WhiteElo "2420"]
[BlackElo "2461"]
[Annotator "RC"]
[PlyCount "59"]
[EventDate "2022.06.28"]
[EventType "swiss"]
[EventCountry "SUI"]
[SourceTitle "playchess.com"]
[Source "ChessBase"]
[SourceQuality "1"]
[TimeControl "40/5400+30:1800+30"]

1. d4 {[%emt 0:01:05]} Nf6 {[%emt 0:00:23]} 2. c4 {[%emt 0:00:12]} e6 {[%emt 0:01:18]} 3. g3 {[%emt 0:01:37]} Bb4+ {[%emt 0:02:25]} 4. Bd2 {[%emt 0:04:18]} Be7 {[%emt 0:01:50]} 5. Bg2 {[%emt 0:05:15]} d5 {[%emt 0:00:10]} 6. Nf3 {[%emt 0:00:10]} O-O {[%emt 0:00:07]} 7. O-O {[%emt 0:01:46]} c6 {[%emt 0:00:14]} 8. Qc2 {[%emt 0:00:57]} Nbd7 {[%emt 0:01:21]} 9. Bf4 {[%emt 0:02:25]} a5 {[%emt 0:09:15]} 10. Rd1 {[%emt 0:11:12]} Ne4 {[%emt 0:15:41]} 11. Nc3 {[%emt 0:07:11]} g5 {[%emt 0:02:49]} 12. Bc1 {[%emt 0:04:14]} f5 {[%emt 0:00:53]} 13. Ne1 {[%emt 0:07:00]} Nd6 {[%emt 0:19:50]} 14. b3 {[%emt 0:05:15]} Kh8 {[%emt 0:11:59]} 15. c5 {[%emt 0:16:38]} Nf7 {[%emt 0:10:27]} 16. Bb2 {[%emt 0:07:01]} Bf6 {[%emt 0:02:29]} 17. e3 {[%emt 0:00:26]} Bg7 {[%emt 0:04:52]} 18. Nd3 {[%emt 0:02:15]} Qe8 {[%emt 0:01:42]} 19. Ne2 {[%emt 0:00:58]} e5 {[%emt 0:00:57]} 20. dxe5 {[%emt 0:00:44]} Ndxe5 {[%emt 0:00:19]} 21. Nxe5 {[%emt 0:01:57]} Nxe5 {[%emt 0:00:05]} 22. Bd4 {[%emt 0:00:54]} Qe7 {[%emt 0:01:03]} 23. a3 {[%emt 0:01:53]} Bd7 {[%emt 0:00:43]} 24. b4 {[%emt 0:10:24]} Be8 {[%emt 0:00:33]} 25. Qc3 {[%emt 0:01:30]} Bh5 {[%emt 0:00:12]} 26. Rd2 {[%emt 0:02:41]} Nc4 {[%emt 0:04:37]} 27. Rc2 {[%emt 0:01:00]} Bg6 {[%emt 0:02:37]} 28. Bxg7+ {[%emt 0:00:49]} Qxg7 {[%emt 0:00:01]} 29. Qxg7+ {[%emt 0:00:28]} Kxg7 {[%emt 0:00:02]} 30. Rcc1 {[%emt 0:05:24]} 1/2-1/2

[Event "121st Swiss Championship 2022"]
[Site "Samnaun-Compatsch"]
[Date "2022.07.08"]
[Round "7.3"]
[White "Gallagher, Joseph G."]
[Black "Gschnitzer, Adrian"]
[Result "1/2-1/2"]
[ECO "B18"]
[WhiteElo "2447"]
[BlackElo "2433"]
[Annotator "RC"]
[PlyCount "31"]
[EventDate "2022.06.28"]
[EventType "swiss"]
[EventCountry "SUI"]
[SourceTitle "playchess.com"]
[Source "ChessBase"]
[SourceQuality "1"]
[TimeControl "40/5400+30:1800+30"]

1. e4 {[%emt 0:00:02]} c6 {[%emt 0:00:06]} 2. d4 {[%emt 0:00:14]} d5 {[%emt 0:00:06]} 3. Nc3 {[%emt 0:01:03]} dxe4 {[%emt 0:00:07]} 4. Nxe4 {[%emt 0:00:08]} Bf5 {[%emt 0:00:06]} 5. Ng3 {[%emt 0:00:04]} Bg6 {[%emt 0:00:09]} 6. Nf3 {[%emt 0:00:08]} Nf6 {[%emt 0:00:15]} 7. Bc4 {[%emt 0:00:19]} Nbd7 {[%emt 0:00:23]} 8. O-O {[%emt 0:00:19]} e6 {[%emt 0:00:05]} 9. Re1 {[%emt 0:00:08]} Be7 {[%emt 0:00:29]} 10. Nh4 {[%emt 0:00:14]} O-O {[%emt 0:00:17]} 11. Nxg6 {[%emt 0:00:45]} hxg6 {[%emt 0:00:08]} 12. c3 {[%emt 0:00:04]} c5 {[%emt 0:00:24]} 13. Be3 {[%emt 0:09:23]} cxd4 {[%emt 0:00:42]} 14. Bxd4 {[%emt 0:04:49]} Qc7 {[%emt 0:05:59]} 15. Bb3 {[%emt 0:01:37]} Bc5 {[%emt 0:01:56]} 16. Ne4 {[%emt 0:19:50]} 1/2-1/2

[Event "121st Swiss Championship 2022"]
[Site "Samnaun-Compatsch"]
[Date "2022.07.08"]
[Round "7.4"]
[White "Rohrer, Christophe"]
[Black "Schlegel, Igor"]
[Result "0-1"]
[ECO "B94"]
[WhiteElo "2246"]
[BlackElo "2194"]
[Annotator "RC"]
[PlyCount "80"]
[EventDate "2022.06.28"]
[EventType "swiss"]
[EventCountry "SUI"]
[SourceTitle "playchess.com"]
[Source "ChessBase"]
[SourceQuality "1"]
[TimeControl "40/5400+30:1800+30"]

1. e4 {[%emt 0:00:05]} c5 {[%emt 0:00:03]} 2. Nf3 {[%emt 0:00:18]} d6 {[%emt 0:00:04]} 3. d4 {[%emt 0:00:07]} cxd4 {[%emt 0:00:04]} 4. Nxd4 {[%emt 0:00:07]} Nf6 {[%emt 0:00:03]} 5. Nc3 {[%emt 0:00:11]} a6 {[%emt 0:00:03]} 6. Bg5 {[%emt 0:00:34]} Nbd7 {[%emt 0:00:06]} 7. f4 {[%emt 0:00:38]} Qc7 {[%emt 0:00:04]} 8. Qf3 {[%emt 0:00:40]} h6 {[%emt 0:00:05]} 9. Bxf6 {[%emt 0:00:35]} Nxf6 {[%emt 0:00:05]} 10. f5 {[%emt 0:00:16]} Qc5 {[%emt 0:00:07]} 11. O-O-O {[%emt 0:00:21]} g5 {[%emt 0:00:06]} 12. fxg6 {[%emt 0:02:11]} Bg4 {[%emt 0:00:06]} 13. gxf7+ {[%emt 0:00:24]} Kxf7 {[%emt 0:00:06]} 14. Qd3 {[%emt 0:00:38]} Bxd1 {[%emt 0:00:06]} 15. Nxd1 {[%emt 0:01:37]} Bg7 {[%emt 0:00:09]} 16. g3 {[%emt 0:10:03]} Nxe4 {[%emt 0:00:51]} 17. Qxe4 {[%emt 0:00:52]} Bxd4 {[%emt 0:00:21]} 18. Bh3 {[%emt 0:15:15]} Bf6 {[%emt 0:03:17]} 19. Be6+ {[%emt 0:05:57]} Kg7 {[%emt 0:01:13]} 20. h4 {[%emt 0:14:12]} Rhf8 {[%emt 0:18:27]} 21. Bd5 {[%emt 0:11:07]} Qd4 {[%emt 0:08:03]} 22. Qe6 {[%emt 0:02:38]} Qe5 {[%emt 0:06:47]} 23. Qg4+ {[%emt 0:00:12]} Kh8 {[%emt 0:00:04]} 24. Bc4 {[%emt 0:08:12]} Rac8 {[%emt 0:15:28]} 25. Bd3 {[%emt 0:00:59]} Rg8 {[%emt 0:00:07]} 26. Qh3 {[%emt 0:00:43]} Rc5 {[%emt 0:01:26]} 27. Rg1 {[%emt 0:03:38]} Qd4 {[%emt 0:20:30]} 28. Qf1 {[%emt 0:00:42]} Rf8 {[%emt 0:00:14]} 29. Kb1 {[%emt 0:00:43]} Bg7 {[%emt 0:00:59]} 30. Qg2 {[%emt 0:00:38]} Ra5 {[%emt 0:01:31]} 31. Re1 {[%emt 0:05:48]} Re5 {[%emt 0:07:05]} 32. Rg1 {[%emt 0:00:59]} Qb4 {[%emt 0:05:00]} 33. a3 {[%emt 0:03:19]} Qa5 {[%emt 0:00:33]} 34. c3 {[%emt 0:01:55]} Qd5 {[%emt 0:02:59]} 35. Qc2 {[%emt 0:00:21]} Rf3 {[%emt 0:04:51]} 36. Be2 {[%emt 0:00:31]} Rf6 {[%emt 0:00:41]} 37. g4 {[%emt 0:02:52]} Rfe6 {[%emt 0:00:50]} 38. Bd3 {[%emt 0:02:11]} Re1 {[%emt 0:00:50]} 39. Rg3 {[%emt 0:00:42]} Qh1 {[%emt 0:00:28]} 40. Kc1 {[%emt 0:01:26]} Rxd1+ {[%emt 0:00:13]} 0-1

[Event "121st Swiss Championship 2022"]
[Site "Samnaun-Compatsch"]
[Date "2022.07.08"]
[Round "7.5"]
[White "Sedina, Yelena"]
[Black "Fecker, Noah"]
[Result "0-1"]
[ECO "B12"]
[WhiteElo "2215"]
[BlackElo "2387"]
[Annotator "RC"]
[PlyCount "90"]
[EventDate "2022.06.28"]
[EventType "swiss"]
[EventCountry "SUI"]
[SourceTitle "playchess.com"]
[Source "ChessBase"]
[SourceQuality "1"]
[TimeControl "40/5400+30:1800+30"]

1. e4 {[%emt 0:00:11]} c6 {[%emt 0:00:09]} 2. d4 {[%emt 0:02:55]} d5 {[%emt 0:00:05]} 3. e5 {[%emt 0:00:56]} c5 {[%emt 0:00:47]} 4. Nf3 {[%emt 0:01:09]} cxd4 {[%emt 0:01:02]} 5. Nxd4 {[%emt 0:01:43]} Nc6 {[%emt 0:00:27]} 6. c4 {[%emt 0:02:23]} e6 {[%emt 0:04:23]} 7. Nc3 {[%emt 0:00:58]} Bb4 {[%emt 0:01:51]} 8. Nxc6 {[%emt 0:21:30]} bxc6 {[%emt 0:00:38]} 9. Qa4 {[%emt 0:21:41]} a5 {[%emt 0:18:20]} 10. cxd5 {[%emt 0:00:08]} Qxd5 {[%emt 0:00:20]} 11. Qxb4 {[%emt 0:04:27]} axb4 {[%emt 0:00:38]} 12. Nxd5 {[%emt 0:00:02]} exd5 {[%emt 0:00:06]} 13. Be3 {[%emt 0:05:33]} Ne7 {[%emt 0:09:07]} 14. Bd3 {[%emt 0:10:38]} Ba6 {[%emt 0:04:25]} 15. Kd2 {[%emt 0:08:22]} Kd7 {[%emt 0:04:46]} 16. Bc5 {[%emt 0:02:47]} Bxd3 {[%emt 0:09:05]} 17. Kxd3 {[%emt 0:00:36]} Rhb8 {[%emt 0:00:34]} 18. a4 {[%emt 0:04:36]} bxa3 {[%emt 0:04:09]} 19. Rxa3 {[%emt 0:00:16]} Ng6 {[%emt 0:10:18]} 20. Bd6 {[%emt 0:00:14]} Rxa3+ {[%emt 0:05:06]} 21. bxa3 {[%emt 0:00:04]} Rb2 {[%emt 0:07:13]} 22. Bc5 {[%emt 0:03:36]} Rb5 {[%emt 0:03:02]} 23. Rc1 {[%emt 0:00:17]} Nf4+ {[%emt 0:00:34]} 24. Kd2 {[%emt 0:05:39]} Ne6 {[%emt 0:00:08]} 25. Bd6 {[%emt 0:00:08]} c5 {[%emt 0:00:20]} 26. a4 {[%emt 0:00:59]} Ra5 {[%emt 0:02:06]} 27. g3 {[%emt 0:00:46]} Kc6 {[%emt 0:03:29]} 28. f4 {[%emt 0:00:50]} g6 {[%emt 0:00:06]} 29. Ra1 {[%emt 0:00:58]} d4 {[%emt 0:01:22]} 30. Kc2 {[%emt 0:00:09]} Kd5 {[%emt 0:00:49]} 31. Kb3 {[%emt 0:00:08]} h5 {[%emt 0:00:57]} 32. Rf1 {[%emt 0:01:13]} Ra7 {[%emt 0:00:33]} 33. Ra1 {[%emt 0:00:33]} c4+ {[%emt 0:00:55]} 34. Kc2 {[%emt 0:00:30]} Nc5 {[%emt 0:01:16]} 35. Bxc5 {[%emt 0:00:30]} Kxc5 {[%emt 0:00:01]} 36. a5 {[%emt 0:00:17]} Kb5 {[%emt 0:01:15]} 37. Rd1 {[%emt 0:00:37]} d3+ {[%emt 0:00:23]} 38. Kc3 {[%emt 0:00:08]} Rxa5 {[%emt 0:02:12]} 39. Kd4 {[%emt 0:00:28]} Ra3 {[%emt 0:03:01]} 40. h3 {[%emt 0:00:22]} Kb4 {[%emt 0:00:36]} 41. Rb1+ {[%emt 0:01:39]} Rb3 {[%emt 0:00:36]} 42. Rd1 {[%emt 0:00:08]} Rb2 {[%emt 0:00:55]} 43. g4 {[%emt 0:03:45]} hxg4 {[%emt 0:01:40]} 44. hxg4 {[%emt 0:00:07]} d2 {[%emt 0:00:27]} 45. Ra1 {[%emt 0:00:51]} c3 {[%emt 0:01:24]} 0-1

[Event "121st Swiss Championship 2022"]
[Site "Samnaun-Compatsch"]
[Date "2022.07.08"]
[Round "7.6"]
[White "Hakimifard, Ghazal"]
[Black "Kostina, Veronika"]
[Result "1-0"]
[ECO "B30"]
[WhiteElo "2296"]
[BlackElo "1883"]
[Annotator "RC"]
[PlyCount "39"]
[EventDate "2022.06.28"]
[EventType "swiss"]
[EventCountry "SUI"]
[SourceTitle "playchess.com"]
[Source "ChessBase"]
[SourceQuality "1"]
[TimeControl "40/5400+30:1800+30"]

1. e4 {[%emt 0:00:04]} c5 {[%emt 0:00:08]} 2. Nf3 {[%emt 0:00:04]} Nc6 {[%emt 0:00:07]} 3. Bb5 {[%emt 0:00:21]} e6 {[%emt 0:00:16]} 4. O-O {[%emt 0:00:09]} Nge7 {[%emt 0:02:20]} 5. Re1 {[%emt 0:00:18]} d6 {[%emt 0:02:51]} 6. c3 {[%emt 0:01:46]} a6 {[%emt 0:07:18]} 7. Bf1 {[%emt 0:00:06]} g6 {[%emt 0:03:12]} 8. d4 {[%emt 0:00:33]} Bg7 {[%emt 0:02:46]} 9. dxc5 {[%emt 0:07:24]} dxc5 {[%emt 0:02:02]} 10. Qxd8+ {[%emt 0:00:53]} Nxd8 {[%emt 0:01:20]} 11. Be3 {[%emt 0:00:22]} b6 {[%emt 0:04:01]} 12. Nbd2 {[%emt 0:00:43]} O-O {[%emt 0:07:38]} 13. Nc4 {[%emt 0:04:09]} b5 {[%emt 0:05:02]} 14. Bxc5 {[%emt 0:03:25]} Ndc6 {[%emt 0:04:21]} 15. Nb6 {[%emt 0:02:51]} Rb8 {[%emt 0:01:11]} 16. a4 {[%emt 0:02:26]} Rd8 {[%emt 0:05:32]} 17. axb5 {[%emt 0:01:45]} axb5 {[%emt 0:00:37]} 18. Bxb5 {[%emt 0:02:18]} Bb7 {[%emt 0:04:10]} 19. Red1 {[%emt 0:05:54]} Bf8 {[%emt 0:04:51]} 20. Bd6 {[%emt 0:07:44]} 1-0

[Event "121st Swiss Championship 2022"]
[Site "Samnaun-Compatsch"]
[Date "2022.07.08"]
[Round "7.7"]
[White "Lou, Vincent"]
[Black "Georgescu, Lena"]
[Result "1/2-1/2"]
[ECO "E39"]
[WhiteElo "2200"]
[BlackElo "2279"]
[Annotator "RC"]
[PlyCount "42"]
[EventDate "2022.06.28"]
[EventType "swiss"]
[EventCountry "SUI"]
[SourceTitle "playchess.com"]
[Source "ChessBase"]
[SourceQuality "1"]
[TimeControl "40/5400+30:1800+30"]

1. d4 {[%emt 0:00:02]} Nf6 {[%emt 0:00:03]} 2. c4 {[%emt 0:00:05]} e6 {[%emt 0:00:02]} 3. Nc3 {[%emt 0:00:07]} Bb4 {[%emt 0:00:03]} 4. Qc2 {[%emt 0:00:08]} O-O {[%emt 0:00:05]} 5. Nf3 {[%emt 0:00:19]} c5 {[%emt 0:00:05]} 6. dxc5 {[%emt 0:00:11]} Na6 {[%emt 0:00:03]} 7. g3 {[%emt 0:00:08]} Nxc5 {[%emt 0:00:14]} 8. Bg2 {[%emt 0:00:17]} b6 {[%emt 0:00:10]} 9. O-O {[%emt 0:01:33]} Bb7 {[%emt 0:00:07]} 10. a3 {[%emt 0:14:44]} Bxc3 {[%emt 0:00:34]} 11. Qxc3 {[%emt 0:00:03]} Rc8 {[%emt 0:03:53]} 12. b3 {[%emt 0:36:32]} d5 {[%emt 0:05:05]} 13. Nd2 {[%emt 0:01:27]} dxc4 {[%emt 0:22:53]} 14. Bxb7 {[%emt 0:07:46]} Nxb7 {[%emt 0:00:07]} 15. bxc4 {[%emt 0:00:15]} Nd6 {[%emt 0:31:50]} 16. a4 {[%emt 0:07:32]} Qc7 {[%emt 0:02:59]} 17. Bb2 {[%emt 0:03:13]} Rfd8 {[%emt 0:02:22]} 18. Rfc1 {[%emt 0:00:31]} a5 {[%emt 0:01:19]} 19. Rab1 {[%emt 0:02:56]} Qc6 {[%emt 0:07:37]} 20. Ba1 {[%emt 0:01:14]} Nf5 {[%emt 0:02:55]} 21. Nf3 {[%emt 0:06:39]} Nd6 {[%emt 0:03:46]} 1/2-1/2

[Event "121st Swiss Championship 2022"]
[Site "Samnaun-Compatsch"]
[Date "2022.07.08"]
[Round "7.8"]
[White "Pogan, Nikolas"]
[Black "Angst, Oliver"]
[Result "1/2-1/2"]
[ECO "D10"]
[WhiteElo "2226"]
[BlackElo "2203"]
[Annotator "RC"]
[PlyCount "93"]
[EventDate "2022.06.28"]
[EventType "swiss"]
[EventCountry "SUI"]
[SourceTitle "playchess.com"]
[Source "ChessBase"]
[SourceQuality "1"]
[TimeControl "40/5400+30:1800+30"]

1. d4 {[%emt 0:01:49]} d5 {[%emt 0:07:17]} 2. c4 {[%emt 0:01:35]} c6 {[%emt 0:00:24]} 3. cxd5 {[%emt 0:00:03]} cxd5 {[%emt 0:00:07]} 4. Nc3 {[%emt 0:00:03]} Nf6 {[%emt 0:00:08]} 5. Bf4 {[%emt 0:00:04]} Nc6 {[%emt 0:00:32]} 6. e3 {[%emt 0:06:42]} Qb6 {[%emt 0:08:44]} 7. Qb3 {[%emt 0:00:04]} Qxb3 {[%emt 0:18:40]} 8. axb3 {[%emt 0:01:17]} Bd7 {[%emt 0:00:00]} 9. f3 {[%emt 0:06:14]} e6 {[%emt 0:00:00]} 10. Nge2 {[%emt 0:04:47]} Bb4 {[%emt 0:02:21]} 11. g4 {[%emt 0:17:50]} O-O {[%emt 0:06:15]} 12. Nc1 {[%emt 0:03:13]} Rfc8 {[%emt 0:03:29]} 13. Nd3 {[%emt 0:06:51]} Bf8 {[%emt 0:06:01]} 14. Kd2 {[%emt 0:00:42]} Ne8 {[%emt 0:00:58]} 15. Be2 {[%emt 0:04:38]} b6 {[%emt 0:04:11]} 16. Rhc1 {[%emt 0:02:26]} Bd6 {[%emt 0:01:56]} 17. Bxd6 {[%emt 0:20:47]} Nxd6 {[%emt 0:00:38]} 18. Ne5 {[%emt 0:01:39]} Nxe5 {[%emt 0:02:35]} 19. dxe5 {[%emt 0:00:29]} Nb7 {[%emt 0:01:02]} 20. Ba6 {[%emt 0:08:51]} Nc5 {[%emt 0:02:23]} 21. Ra3 {[%emt 0:03:56]} Rd8 {[%emt 0:13:30]} 22. Rca1 {[%emt 0:00:36]} Bc6 {[%emt 0:04:08]} 23. Ne2 {[%emt 0:06:35]} d4 {[%emt 0:03:12]} 24. Nxd4 {[%emt 0:00:02]} Bxf3 {[%emt 0:00:14]} 25. Ke1 {[%emt 0:00:21]} Bxg4 {[%emt 0:01:10]} 26. b4 {[%emt 0:01:03]} Nxa6 {[%emt 0:04:43]} 27. Rxa6 {[%emt 0:00:04]} h5 {[%emt 0:00:03]} 28. Rxa7 {[%emt 0:01:00]} Rxa7 {[%emt 0:04:11]} 29. Rxa7 {[%emt 0:00:04]} Rd5 {[%emt 0:00:06]} 30. Rb7 {[%emt 0:00:44]} Rxe5 {[%emt 0:00:04]} 31. Kf2 {[%emt 0:00:11]} Rd5 {[%emt 0:01:14]} 32. Rxb6 {[%emt 0:00:07]} e5 {[%emt 0:00:15]} 33. Rb8+ {[%emt 0:01:22]} Kh7 {[%emt 0:00:04]} 34. Rb5 {[%emt 0:00:06]} Rxb5 {[%emt 0:02:46]} 35. Nxb5 {[%emt 0:00:05]} Kg6 {[%emt 0:00:12]} 36. Nd6 {[%emt 0:01:29]} Kf6 {[%emt 0:01:14]} 37. Ne8+ {[%emt 0:00:23]} Ke7 {[%emt 0:00:05]} 38. Nxg7 {[%emt 0:00:09]} Kf8 {[%emt 0:01:11]} 39. h3 {[%emt 0:00:44]} Bxh3 {[%emt 0:00:01]} 40. Nxh5 {[%emt 0:00:04]} Ke7 {[%emt 0:01:58]} 41. Ng3 {[%emt 0:06:34]} Bd7 {[%emt 0:04:48]} 42. Ne4 {[%emt 0:00:23]} f5 {[%emt 0:02:39]} 43. Nc3 {[%emt 0:01:13]} Kd6 {[%emt 0:04:27]} 44. Kg3 {[%emt 0:01:32]} Kc6 {[%emt 0:03:15]} 45. Kf3 {[%emt 0:04:45]} Kb6 {[%emt 0:02:46]} 46. Ke2 {[%emt 0:00:21]} Bb5+ {[%emt 0:01:04]} 47. Kf2 {[%emt 0:01:11]} 1/2-1/2

[Event "121st Swiss Championship 2022"]
[Site "Samnaun-Compatsch"]
[Date "2022.07.08"]
[Round "7.9"]
[White "Collin, Moritz Valentin"]
[Black "Wyss, Jonas"]
[Result "1/2-1/2"]
[ECO "E60"]
[WhiteElo "2129"]
[BlackElo "2223"]
[Annotator "ChessBase"]
[PlyCount "92"]
[EventDate "2022.06.28"]
[EventType "swiss"]
[EventCountry "SUI"]
[SourceTitle "playchess.com"]
[Source "ChessBase"]
[SourceQuality "1"]
[TimeControl "40/5400+30:1800+30"]

1. d4 {[%emt 0:00:02]} Nf6 {[%emt 0:00:07]} 2. c4 {[%emt 0:00:05]} g6 {[%emt 0:00:11]} 3. h4 {[%emt 0:00:05]} c5 {[%emt 0:05:08]} 4. d5 {[%emt 0:00:07]} e6 {[%emt 0:01:33]} 5. e4 {[%emt 0:00:35]} exd5 {[%emt 0:05:23]} 6. e5 {[%emt 0:00:59]} Qe7 {[%emt 0:12:19]} 7. Qe2 {[%emt 0:00:38]} Nh5 {[%emt 0:02:02]} 8. Nc3 {[%emt 0:08:20]} Na6 {[%emt 0:10:47]} 9. Bg5 {[%emt 0:10:34]} Qe6 {[%emt 0:09:29]} 10. cxd5 {[%emt 0:03:04]} Qb6 {[%emt 0:00:09]} 11. d6 {[%emt 0:05:41]} h6 {[%emt 0:08:32]} 12. Nd5 {[%emt 0:10:15]} Qc6 {[%emt 0:02:13]} 13. Qd2 {[%emt 0:05:28]} hxg5 {[%emt 0:09:01]} 14. Bxa6 {[%emt 0:02:26]} bxa6 {[%emt 0:03:44]} 15. Nc7+ {[%emt 0:02:21]} Kd8 {[%emt 0:00:01]} 16. Qa5 {[%emt 0:02:38]} Qb6 {[%emt 0:03:48]} 17. Qxb6 {[%emt 0:01:35]} axb6 {[%emt 0:00:04]} 18. Nxa8 {[%emt 0:01:31]} Bb7 {[%emt 0:02:56]} 19. Nxb6 {[%emt 0:00:31]} Nf4 {[%emt 0:00:37]} 20. f3 {[%emt 0:15:38]} Nxg2+ {[%emt 0:01:30]} 21. Kf2 {[%emt 0:01:46]} Nf4 {[%emt 0:05:08]} 22. Nh3 {[%emt 0:07:44]} Nd3+ {[%emt 0:02:59]} 23. Ke2 {[%emt 0:02:53]} Nxe5 {[%emt 0:01:48]} 24. Nxg5 {[%emt 0:01:43]} f6 {[%emt 0:01:00]} 25. Nc4 {[%emt 0:06:50]} Bxf3+ {[%emt 0:04:16]} 26. Kf2 {[%emt 0:01:36]} Bxh1 {[%emt 0:01:33]} 27. Nxe5 {[%emt 0:01:56]} Rxh4 {[%emt 0:00:28]} 28. Nxg6 {[%emt 0:01:10]} Rh2+ {[%emt 0:02:08]} 29. Kg1 {[%emt 0:01:56]} Rg2+ {[%emt 0:00:42]} 30. Kxh1 {[%emt 0:00:23]} Rxg5 {[%emt 0:00:05]} 31. Nxf8 {[%emt 0:00:45]} Ke8 {[%emt 0:01:13]} 32. Nxd7 {[%emt 0:01:14]} Kxd7 {[%emt 0:00:07]} 33. Rd1 {[%emt 0:00:54]} Re5 {[%emt 0:00:48]} 34. a3 {[%emt 0:01:43]} Re2 {[%emt 0:01:46]} 35. Rd5 {[%emt 0:01:51]} Rxb2 {[%emt 0:01:19]} 36. Rxc5 {[%emt 0:00:07]} Kxd6 {[%emt 0:01:25]} 37. Rf5 {[%emt 0:00:25]} Ke6 {[%emt 0:00:54]} 38. Ra5 {[%emt 0:00:08]} Rb6 {[%emt 0:00:04]} 39. Kg2 {[%emt 0:00:21]} Kd7 {[%emt 0:00:56]} 40. Kf3 {[%emt 0:00:08]} Re6 {[%emt 0:00:28]} 41. Kf4 {[%emt 0:30:51]} Kc7 {[%emt 0:30:31]} 42. Kf5 {[%emt 0:00:29]} Rd6 {[%emt 0:01:23]} 43. Kg6 {[%emt 0:02:01]} Kd7 {[%emt 0:00:00]} 44. Kf7 {[%emt 0:00:00]} Rb6 {[%emt 0:00:00]} 45. Rf5 {[%emt 0:00:00]} Rb3 {[%emt 0:00:00]} 46. Ra5 {[%emt 0:00:00]} Rb6 {[%emt 0:00:00]} 1/2-1/2